[Event "*** Titled Tuesday Blitz"]
[Site "Chess.com"]
[Date "2018.01.02"]
[Round "4"]
[White "ChainsOfFantasia"]
[Black "mishanick"]
[Result "0-1"]
[WhiteElo "2451"]
[BlackElo "2778"]
[TimeControl "180+2"]
[EndTime "13:46:58 PST"]
[Termination "mishanick won by resignation"]

1. d4 {[%clk 0:03:01.9]} 1... Nf6 {[%clk 0:02:59.3]} 2. Nf3 {[%clk 0:03:02.9]}
2... d5 {[%clk 0:02:58.4]} 3. c4 {[%clk 0:03:03.8]} 3... e6 {[%clk 0:02:59.4]}
4. Nc3 {[%clk 0:03:04.9]} 4... Bb4 {[%clk 0:02:59.6]} 5. e3 {[%clk 0:03:06.2]}
5... O-O {[%clk 0:02:59.7]} 6. a3 {[%clk 0:03:07]} 6... Bxc3+ {[%clk 0:03:00]}
7. bxc3 {[%clk 0:03:08.9]} 7... b6 {[%clk 0:03:01.2]} 8. cxd5 {[%clk 0:03:10]}
8... exd5 {[%clk 0:03:02]} 9. Bd3 {[%clk 0:03:11]} 9... c5 {[%clk 0:03:02.9]}
10. O-O {[%clk 0:03:11]} 10... Ba6 {[%clk 0:03:04.4]} 11. Re1 {[%clk 0:03:10.3]}
11... Bxd3 {[%clk 0:03:03.3]} 12. Qxd3 {[%clk 0:03:12.2]} 12... c4 {[%clk
0:03:01.5]} 13. Qc2 {[%clk 0:03:12.4]} 13... Re8 {[%clk 0:03:02.9]} 14. Ne5
{[%clk 0:03:08.3]} 14... Nbd7 {[%clk 0:03:02.4]} 15. Nxd7 {[%clk 0:03:03.7]}
15... Qxd7 {[%clk 0:03:04.3]} 16. a4 {[%clk 0:03:03.9]} 16... Re6 {[%clk
0:03:01.1]} 17. Bd2 {[%clk 0:02:52.9]} 17... Rae8 {[%clk 0:03:01.9]} 18. Reb1
{[%clk 0:02:53.6]} 18... Ne4 {[%clk 0:03:01.4]} 19. Bc1 {[%clk 0:02:53.3]} 19...
Rg6 {[%clk 0:02:52.4]} 20. f3 {[%clk 0:02:53.5]} 20... Ng5 {[%clk 0:02:52.5]}
21. Kh1 {[%clk 0:02:49.2]} 21... Qd6 {[%clk 0:02:45.7]} 22. a5 {[%clk 0:02:39]}
22... Rh6 {[%clk 0:02:42.8]} 23. f4 {[%clk 0:02:40.3]} 23... Ne4 {[%clk
0:02:41]} 24. axb6 {[%clk 0:02:40.1]} 24... axb6 {[%clk 0:02:42.9]} 25. Ra6
{[%clk 0:02:39.7]} 25... Qg6 {[%clk 0:02:41.6]} 26. Rbxb6 {[%clk 0:02:36.2]}
26... Ng3+ {[%clk 0:02:41.1]} 27. Kg1 {[%clk 0:02:36.5]} 27... Qxc2 {[%clk
0:02:42.6]} 0-1

[Event "*** Titled Tuesday Blitz"]
[Site "Chess.com"]
[Date "2018.01.02"]
[Round "4"]
[White "EndgameGrinder"]
[Black "joppie2"]
[Result "1-0"]
[WhiteElo "2448"]
[BlackElo "2585"]
[TimeControl "180+2"]
[EndTime "13:47:14 PST"]
[Termination "EndgameGrinder won by resignation"]

1. e4 {[%clk 0:03:01.9]} 1... e5 {[%clk 0:03:01.3]} 2. Nf3 {[%clk 0:03:02.7]}
2... Nc6 {[%clk 0:03:03.2]} 3. d4 {[%clk 0:03:04.3]} 3... exd4 {[%clk
0:03:03.8]} 4. Nxd4 {[%clk 0:03:06.2]} 4... Nf6 {[%clk 0:03:04.7]} 5. Nxc6
{[%clk 0:03:07.6]} 5... bxc6 {[%clk 0:03:06.6]} 6. e5 {[%clk 0:03:09]} 6... Nd5
{[%clk 0:03:07.1]} 7. c4 {[%clk 0:03:09.5]} 7... Nb6 {[%clk 0:03:06.8]} 8. Bd3
{[%clk 0:03:10.6]} 8... d5 {[%clk 0:03:07.4]} 9. cxd5 {[%clk 0:03:07.4]} 9...
Bd6 {[%clk 0:03:08.8]} 10. exd6 {[%clk 0:03:07.1]} 10... O-O {[%clk 0:03:06.6]}
11. O-O {[%clk 0:03:05.7]} 11... Qxd6 {[%clk 0:03:04.8]} 12. dxc6 {[%clk
0:02:54.2]} 12... Qxc6 {[%clk 0:03:06.7]} 13. Nc3 {[%clk 0:02:51.8]} 13... Rb8
{[%clk 0:02:53.4]} 14. Qh5 {[%clk 0:02:42.9]} 14... g6 {[%clk 0:02:52.6]} 15.
Qh4 {[%clk 0:02:38.4]} 15... Bb7 {[%clk 0:02:52.3]} 16. Be4 {[%clk 0:02:37.1]}
16... Qc4 {[%clk 0:02:53]} 17. g3 {[%clk 0:02:29.8]} 17... Ba6 {[%clk
0:02:52.2]} 18. Bh6 {[%clk 0:02:28.5]} 18... Rfd8 {[%clk 0:02:46.1]} 19. Rfd1
{[%clk 0:02:19]} 19... Nd7 {[%clk 0:02:39.2]} 20. Bg5 {[%clk 0:02:19]} 20... f6
{[%clk 0:02:15.7]} 21. Bd5+ {[%clk 0:02:14.5]} 1-0

[Event "*** Titled Tuesday Blitz"]
[Site "Chess.com"]
[Date "2018.01.02"]
[Round "4"]
[White "attack2mateU"]
[Black "hermionegrangermagic"]
[Result "0-1"]
[WhiteElo "2605"]
[BlackElo "2434"]
[TimeControl "180+2"]
[EndTime "13:47:18 PST"]
[Termination "hermionegrangermagic won by resignation"]

1. e4 {[%clk 0:03:01.9]} 1... c5 {[%clk 0:03:00.1]} 2. Nf3 {[%clk 0:03:03.4]}
2... Nc6 {[%clk 0:03:00.5]} 3. d4 {[%clk 0:03:04.4]} 3... cxd4 {[%clk
0:03:02.3]} 4. Nxd4 {[%clk 0:03:05.9]} 4... e5 {[%clk 0:03:03.9]} 5. Nb5 {[%clk
0:03:04.6]} 5... d6 {[%clk 0:03:05.2]} 6. N1c3 {[%clk 0:03:04.2]} 6... a6 {[%clk
0:03:06.2]} 7. Na3 {[%clk 0:03:04.8]} 7... b5 {[%clk 0:03:07.6]} 8. Nd5 {[%clk
0:03:05]} 8... Nge7 {[%clk 0:03:09.1]} 9. c4 {[%clk 0:03:02.2]} 9... Nxd5 {[%clk
0:03:09.3]} 10. cxd5 {[%clk 0:03:00.3]} 10... Nd4 {[%clk 0:03:10.3]} 11. Nc2
{[%clk 0:02:59.8]} 11... Nxc2+ {[%clk 0:03:10]} 12. Qxc2 {[%clk 0:03:01.7]}
12... Be7 {[%clk 0:03:10.9]} 13. Be2 {[%clk 0:02:58.6]} 13... O-O {[%clk
0:03:11.7]} 14. O-O {[%clk 0:03:00.2]} 14... f5 {[%clk 0:03:12.7]} 15. exf5
{[%clk 0:02:59]} 15... Bxf5 {[%clk 0:03:12.6]} 16. Qb3 {[%clk 0:02:47.6]} 16...
Qe8 {[%clk 0:03:12.9]} 17. a4 {[%clk 0:02:36.3]} 17... Rb8 {[%clk 0:03:10.1]}
18. axb5 {[%clk 0:02:36.7]} 18... axb5 {[%clk 0:03:10.7]} 19. Ra7 {[%clk
0:02:36.6]} 19... Bf6 {[%clk 0:03:11.5]} 20. Qb4 {[%clk 0:02:34.4]} 20... Rb6
{[%clk 0:03:03.7]} 21. Be3 {[%clk 0:02:33.3]} 21... Bd8 {[%clk 0:03:00.2]} 22.
Bxb6 {[%clk 0:02:30.2]} 22... Bxb6 {[%clk 0:03:00.2]} 23. Rb7 {[%clk 0:02:24.6]}
23... Bc5 {[%clk 0:03:00.1]} 24. Qxb5 {[%clk 0:02:25.3]} 24... Qg6 {[%clk
0:02:59.2]} 25. b4 {[%clk 0:02:19.1]} 25... Bh3 {[%clk 0:02:55.1]} 26. g3 {[%clk
0:01:56.6]} 26... Qe4 {[%clk 0:02:54]} 0-1

[Event "*** Titled Tuesday Blitz"]
[Site "Chess.com"]
[Date "2018.01.02"]
[Round "4"]
[White "windking123"]
[Black "gkchesstiger"]
[Result "0-1"]
[WhiteElo "2423"]
[BlackElo "2616"]
[TimeControl "180+2"]
[EndTime "13:47:22 PST"]
[Termination "gkchesstiger won by resignation"]

1. Nf3 {[%clk 0:03:01.9]} 1... d5 {[%clk 0:03:00.1]} 2. d4 {[%clk 0:03:00.1]}
2... Nf6 {[%clk 0:03:00.2]} 3. g3 {[%clk 0:03:01.4]} 3... c6 {[%clk 0:03:00.8]}
4. Bg2 {[%clk 0:03:02.6]} 4... Bf5 {[%clk 0:03:01.8]} 5. O-O {[%clk 0:03:03.9]}
5... e6 {[%clk 0:03:01.7]} 6. c4 {[%clk 0:03:04.7]} 6... h6 {[%clk 0:02:59.8]}
7. Nbd2 {[%clk 0:03:04.6]} 7... Be7 {[%clk 0:03:00.2]} 8. b3 {[%clk 0:03:05.4]}
8... Nbd7 {[%clk 0:03:00.4]} 9. Bb2 {[%clk 0:03:06.6]} 9... a5 {[%clk
0:03:00.8]} 10. Ne5 {[%clk 0:03:04.5]} 10... O-O {[%clk 0:02:59.8]} 11. f3
{[%clk 0:02:53.2]} 11... Nxe5 {[%clk 0:02:58.1]} 12. dxe5 {[%clk 0:02:53.8]}
12... Nd7 {[%clk 0:02:58.8]} 13. e4 {[%clk 0:02:50.4]} 13... dxe4 {[%clk
0:02:59]} 14. fxe4 {[%clk 0:02:51.2]} 14... Bg6 {[%clk 0:02:57.6]} 15. Qe2
{[%clk 0:02:46.6]} 15... Nc5 {[%clk 0:02:48.5]} 16. Rad1 {[%clk 0:02:44]} 16...
Qd3 {[%clk 0:02:48.7]} 17. Qxd3 {[%clk 0:02:44.5]} 17... Nxd3 {[%clk 0:02:49]}
18. Bc3 {[%clk 0:02:45.9]} 18... Bc5+ {[%clk 0:02:49.8]} 19. Kh1 {[%clk
0:02:45.2]} 19... Nf2+ {[%clk 0:02:50.6]} 20. Rxf2 {[%clk 0:02:46.2]} 20... Bxf2
{[%clk 0:02:52.1]} 21. Bf3 {[%clk 0:02:46.7]} 21... Rfd8 {[%clk 0:02:52.3]} 22.
Kg2 {[%clk 0:02:45.1]} 22... Bd4 {[%clk 0:02:53.1]} 23. Bxd4 {[%clk 0:02:40.8]}
23... Rxd4 {[%clk 0:02:53.9]} 24. Kf2 {[%clk 0:02:42.3]} 24... Rad8 {[%clk
0:02:44.9]} 25. Ke1 {[%clk 0:02:43.5]} 25... Kf8 {[%clk 0:02:42.1]} 26. Nf1
{[%clk 0:02:39.8]} 26... Rxd1+ {[%clk 0:02:42.7]} 27. Bxd1 {[%clk 0:02:41.7]}
27... Bxe4 {[%clk 0:02:43.8]} 28. Ne3 {[%clk 0:02:42.8]} 28... Ke7 {[%clk
0:02:44.3]} 29. Be2 {[%clk 0:02:42.2]} 29... c5 {[%clk 0:02:43]} 30. Nf1 {[%clk
0:02:41]} 30... Bb1 {[%clk 0:02:42.8]} 31. a3 {[%clk 0:02:41.2]} 31... Bc2
{[%clk 0:02:43]} 32. Nd2 {[%clk 0:02:40.2]} 32... b6 {[%clk 0:02:44.1]} 33. Bf3
{[%clk 0:02:40.3]} 33... Rd3 {[%clk 0:02:43.8]} 34. Be2 {[%clk 0:02:35.3]} 34...
Rc3 {[%clk 0:02:43.7]} 0-1

[Event "*** Titled Tuesday Blitz"]
[Site "Chess.com"]
[Date "2018.01.02"]
[Round "4"]
[White "luisgui16"]
[Black "geeeeri"]
[Result "0-1"]
[WhiteElo "2254"]
[BlackElo "2398"]
[TimeControl "180+2"]
[EndTime "13:48:57 PST"]
[Termination "geeeeri won on time"]

1. e4 {[%clk 0:03:01.9]} 1... e6 {[%clk 0:03:00.9]} 2. d4 {[%clk 0:03:00.3]}
2... d5 {[%clk 0:03:02.1]} 3. Nc3 {[%clk 0:03:01.6]} 3... Nf6 {[%clk 0:03:03.1]}
4. Bg5 {[%clk 0:02:59.5]} 4... Bb4 {[%clk 0:03:04.5]} 5. e5 {[%clk 0:02:52.9]}
5... h6 {[%clk 0:03:05.5]} 6. Bd2 {[%clk 0:02:51.1]} 6... Bxc3 {[%clk
0:03:06.8]} 7. bxc3 {[%clk 0:02:51.2]} 7... Ne4 {[%clk 0:03:08.3]} 8. Qg4 {[%clk
0:02:51.8]} 8... Kf8 {[%clk 0:03:09.8]} 9. Bd3 {[%clk 0:02:49.3]} 9... Nxd2
{[%clk 0:03:11.3]} 10. Kxd2 {[%clk 0:02:51.2]} 10... c5 {[%clk 0:03:13]} 11. Nf3
{[%clk 0:02:46]} 11... Nc6 {[%clk 0:03:14.4]} 12. h4 {[%clk 0:02:45.4]} 12... c4
{[%clk 0:03:15.7]} 13. Be2 {[%clk 0:02:44.8]} 13... b5 {[%clk 0:03:16.7]} 14. a3
{[%clk 0:02:29.4]} 14... a5 {[%clk 0:03:17.4]} 15. h5 {[%clk 0:02:24.5]} 15...
Rb8 {[%clk 0:03:18.2]} 16. Rh3 {[%clk 0:02:13.5]} 16... b4 {[%clk 0:03:17.1]}
17. axb4 {[%clk 0:02:12.3]} 17... axb4 {[%clk 0:03:19]} 18. Rg3 {[%clk
0:02:07.1]} 18... Rg8 {[%clk 0:03:18.6]} 19. Nh4 {[%clk 0:02:05.3]} 19... bxc3+
{[%clk 0:03:13.3]} 20. Ke3 {[%clk 0:01:45.8]} 20... Rb2 {[%clk 0:02:45.6]} 0-1

[Event "*** Titled Tuesday Blitz"]
[Site "Chess.com"]
[Date "2018.01.02"]
[Round "4"]
[White "Jbd735"]
[Black "GremioPrudente"]
[Result "1-0"]
[WhiteElo "2283"]
[BlackElo "2043"]
[TimeControl "180+2"]
[EndTime "13:49:32 PST"]
[Termination "Jbd735 won on time"]

1. e4 {[%clk 0:03:01.9]} 1... e6 {[%clk 0:03:00.5]} 2. d4 {[%clk 0:03:02.5]}
2... d5 {[%clk 0:02:59.4]} 3. Nc3 {[%clk 0:03:03.9]} 3... Nf6 {[%clk 0:02:58.9]}
4. Bg5 {[%clk 0:03:04]} 4... Be7 {[%clk 0:02:54.8]} 5. e5 {[%clk 0:03:04.7]}
5... Nfd7 {[%clk 0:02:55.8]} 6. h4 {[%clk 0:03:05.1]} 6... Bxg5 {[%clk 0:02:52]}
7. hxg5 {[%clk 0:03:06]} 7... Qxg5 {[%clk 0:02:53.4]} 8. Nh3 {[%clk 0:03:02.6]}
8... Qe7 {[%clk 0:02:54.1]} 9. Nf4 {[%clk 0:03:03]} 9... Nb6 {[%clk 0:02:52.1]}
10. Qg4 {[%clk 0:02:59.3]} 10... g6 {[%clk 0:02:47.6]} 11. Bd3 {[%clk
0:02:58.7]} 11... Nc6 {[%clk 0:01:47.3]} 12. O-O-O {[%clk 0:02:50.4]} 12... Bd7
{[%clk 0:01:45]} 13. Nce2 {[%clk 0:02:26.5]} 13... O-O-O {[%clk 0:01:25.4]} 14.
Rh6 {[%clk 0:02:25.7]} 14... Nc4 {[%clk 0:01:20.4]} 15. c3 {[%clk 0:02:23]}
15... f5 {[%clk 0:01:06.6]} 16. Qh3 {[%clk 0:02:15]} 16... Qg7 {[%clk
0:00:47.4]} 17. Rh1 {[%clk 0:02:13.5]} 17... g5 {[%clk 0:00:42]} 18. Nxe6 {[%clk
0:02:12.2]} 18... Bxe6 {[%clk 0:00:41.7]} 19. Rxe6 {[%clk 0:02:13.6]} 19... g4
{[%clk 0:00:35.6]} 20. Qh6 {[%clk 0:02:10.8]} 20... Qxh6+ {[%clk 0:00:33.7]} 21.
Rexh6 {[%clk 0:02:10.4]} 1-0

[Event "*** Titled Tuesday Blitz"]
[Site "Chess.com"]
[Date "2018.01.02"]
[Round "4"]
[White "danir29"]
[Black "Andrejs_Sokolov"]
[Result "1-0"]
[WhiteElo "2506"]
[BlackElo "2607"]
[TimeControl "180+2"]
[EndTime "13:50:09 PST"]
[Termination "danir29 won by resignation"]

1. d4 {[%clk 0:03:01.9]} 1... d6 {[%clk 0:03:00.2]} 2. Nf3 {[%clk 0:03:02.5]}
2... Bg4 {[%clk 0:03:00.5]} 3. Bf4 {[%clk 0:02:58.1]} 3... Nd7 {[%clk 0:02:59]}
4. h3 {[%clk 0:02:53.9]} 4... Bxf3 {[%clk 0:02:57.5]} 5. exf3 {[%clk 0:02:51.4]}
5... g6 {[%clk 0:02:58.3]} 6. c3 {[%clk 0:02:45.6]} 6... c6 {[%clk 0:02:53.4]}
7. Nd2 {[%clk 0:02:41.7]} 7... Bg7 {[%clk 0:02:54]} 8. Qb3 {[%clk 0:02:37.3]}
8... Qc7 {[%clk 0:02:45.3]} 9. Bc4 {[%clk 0:02:33.8]} 9... e6 {[%clk 0:02:45.2]}
10. Ne4 {[%clk 0:02:32.5]} 10... Bf8 {[%clk 0:02:39.4]} 11. Bxe6 {[%clk
0:02:25.4]} 11... fxe6 {[%clk 0:02:25.6]} 12. Qxe6+ {[%clk 0:02:25.8]} 12... Kd8
{[%clk 0:02:20.9]} 13. Nxd6 {[%clk 0:02:25.2]} 13... Bxd6 {[%clk 0:02:14.9]} 14.
Bxd6 {[%clk 0:02:22.1]} 14... Qa5 {[%clk 0:02:12.8]} 15. Bc5 {[%clk 0:01:29.9]}
15... Nxc5 {[%clk 0:01:47.4]} 16. dxc5 {[%clk 0:01:29.2]} 16... Qxc5 {[%clk
0:01:48.2]} 17. O-O-O+ {[%clk 0:01:27.4]} 17... Kc7 {[%clk 0:01:47.6]} 18. Rd7+
{[%clk 0:01:23.4]} 18... Kb6 {[%clk 0:01:47.1]} 19. Qf7 {[%clk 0:01:10]} 19...
Qg5+ {[%clk 0:01:33.4]} 20. f4 {[%clk 0:01:06.7]} 20... Qxg2 {[%clk 0:01:19.2]}
21. Qb3+ {[%clk 0:01:00.2]} 21... Ka6 {[%clk 0:01:04.8]} 22. Qxb7+ {[%clk
0:00:57.6]} 22... Ka5 {[%clk 0:01:05.6]} 23. b4+ {[%clk 0:00:55.4]} 1-0

[Event "*** Titled Tuesday Blitz"]
[Site "Chess.com"]
[Date "2018.01.02"]
[Round "4"]
[White "LuisFSiles"]
[Black "capatl"]
[Result "0-1"]
[WhiteElo "2221"]
[BlackElo "2394"]
[TimeControl "180+2"]
[EndTime "13:50:26 PST"]
[Termination "capatl won by resignation"]

1. e4 {[%clk 0:03:01.9]} 1... c5 {[%clk 0:03:00.2]} 2. Nf3 {[%clk 0:03:01.7]}
2... e6 {[%clk 0:03:01]} 3. c3 {[%clk 0:03:01.9]} 3... Nf6 {[%clk 0:03:00.9]} 4.
e5 {[%clk 0:03:01.4]} 4... Nd5 {[%clk 0:03:02.4]} 5. Bc4 {[%clk 0:03:02.9]} 5...
Nb6 {[%clk 0:02:47.8]} 6. Bb3 {[%clk 0:03:01.5]} 6... Nc6 {[%clk 0:02:38.9]} 7.
O-O {[%clk 0:02:56.1]} 7... d6 {[%clk 0:02:20.3]} 8. d4 {[%clk 0:02:54.1]} 8...
dxe5 {[%clk 0:02:17.8]} 9. dxe5 {[%clk 0:02:48.2]} 9... Qxd1 {[%clk 0:02:15.6]}
10. Rxd1 {[%clk 0:02:48.6]} 10... Bd7 {[%clk 0:01:20.6]} 11. Bf4 {[%clk
0:02:47.1]} 11... Na5 {[%clk 0:01:19.6]} 12. Bc2 {[%clk 0:02:41.3]} 12... Bc6
{[%clk 0:01:18.4]} 13. Nbd2 {[%clk 0:02:36.5]} 13... Nac4 {[%clk 0:01:09.3]} 14.
b3 {[%clk 0:02:36.2]} 14... Nxd2 {[%clk 0:01:09.9]} 15. Nxd2 {[%clk 0:02:36.6]}
15... Nd5 {[%clk 0:01:10.9]} 16. Bg3 {[%clk 0:02:06.3]} 16... Nxc3 {[%clk
0:01:10.9]} 17. Re1 {[%clk 0:02:07.9]} 17... h5 {[%clk 0:01:02.1]} 18. h4 {[%clk
0:02:07.7]} 18... Be7 {[%clk 0:00:53.9]} 19. a4 {[%clk 0:01:58.7]} 19... g5
{[%clk 0:00:50.5]} 20. hxg5 {[%clk 0:01:54.5]} 20... Bxg5 {[%clk 0:00:52.4]} 21.
Nf3 {[%clk 0:01:55.9]} 21... Bxf3 {[%clk 0:00:46.2]} 22. gxf3 {[%clk 0:01:56.8]}
22... h4 {[%clk 0:00:22.5]} 23. f4 {[%clk 0:01:50.8]} 23... hxg3 {[%clk
0:00:19.4]} 24. fxg3 {[%clk 0:01:44]} 24... Be7 {[%clk 0:00:19.8]} 25. Kg2
{[%clk 0:01:42.9]} 25... O-O-O {[%clk 0:00:20]} 26. Rac1 {[%clk 0:01:43.8]}
26... Nd5 {[%clk 0:00:20.9]} 27. Be4 {[%clk 0:01:43.8]} 27... b6 {[%clk
0:00:22.2]} 28. a5 {[%clk 0:01:43.8]} 28... Kb8 {[%clk 0:00:22.9]} 29. a6 {[%clk
0:01:45]} 29... Nb4 {[%clk 0:00:23.3]} 30. Bb7 {[%clk 0:01:44.2]} 30... Nd3
{[%clk 0:00:23.4]} 0-1

[Event "*** Titled Tuesday Blitz"]
[Site "Chess.com"]
[Date "2018.01.02"]
[Round "4"]
[White "TijanaBlagojevic"]
[Black "Zufi1811"]
[Result "0-1"]
[WhiteElo "2371"]
[BlackElo "2405"]
[TimeControl "180+2"]
[EndTime "13:50:35 PST"]
[Termination "Zufi1811 won by checkmate"]

1. e4 {[%clk 0:03:01.9]} 1... c5 {[%clk 0:02:59.4]} 2. Nf3 {[%clk 0:03:02.8]}
2... d6 {[%clk 0:02:59.2]} 3. Bb5+ {[%clk 0:03:02.9]} 3... Nd7 {[%clk
0:02:58.8]} 4. O-O {[%clk 0:03:03.5]} 4... Nf6 {[%clk 0:03:00.3]} 5. Re1 {[%clk
0:03:04.4]} 5... a6 {[%clk 0:03:01.9]} 6. Bf1 {[%clk 0:03:05.4]} 6... e5 {[%clk
0:03:03.4]} 7. a4 {[%clk 0:03:02.1]} 7... b6 {[%clk 0:03:03.2]} 8. c3 {[%clk
0:02:53.4]} 8... Bb7 {[%clk 0:03:04.1]} 9. d3 {[%clk 0:02:49.3]} 9... Be7 {[%clk
0:03:04.4]} 10. Nbd2 {[%clk 0:02:49.5]} 10... O-O {[%clk 0:03:05.7]} 11. Nc4
{[%clk 0:02:47.3]} 11... Qc7 {[%clk 0:03:05.9]} 12. Ne3 {[%clk 0:02:48.3]} 12...
g6 {[%clk 0:03:06.1]} 13. h3 {[%clk 0:02:48.4]} 13... Rfe8 {[%clk 0:03:06.7]}
14. Ng4 {[%clk 0:02:48.9]} 14... Nxg4 {[%clk 0:02:57.9]} 15. hxg4 {[%clk
0:02:50.8]} 15... Bf8 {[%clk 0:02:58.1]} 16. c4 {[%clk 0:02:50.9]} 16... Nb8
{[%clk 0:02:46.4]} 17. Nh4 {[%clk 0:02:41.2]} 17... Nc6 {[%clk 0:02:46.3]} 18.
Be3 {[%clk 0:02:41.4]} 18... Bg7 {[%clk 0:02:32.9]} 19. g5 {[%clk 0:02:39.6]}
19... Bc8 {[%clk 0:02:25.2]} 20. Qf3 {[%clk 0:02:39.4]} 20... Bd7 {[%clk
0:02:17.7]} 21. g3 {[%clk 0:02:40.3]} 21... Nb4 {[%clk 0:02:07.3]} 22. Rec1
{[%clk 0:02:26.9]} 22... b5 {[%clk 0:02:06.9]} 23. axb5 {[%clk 0:02:19.8]} 23...
axb5 {[%clk 0:02:08.8]} 24. Kh2 {[%clk 0:02:13]} 24... Rxa1 {[%clk 0:02:05.1]}
25. Rxa1 {[%clk 0:02:14.9]} 25... Nc2 {[%clk 0:02:06.2]} 26. Ra6 {[%clk
0:02:12]} 26... bxc4 {[%clk 0:02:02.9]} 27. dxc4 {[%clk 0:02:12.5]} 27... Nd4
{[%clk 0:01:55.7]} 28. Qd1 {[%clk 0:02:08.2]} 28... Bc6 {[%clk 0:01:54.4]} 29.
Bh3 {[%clk 0:02:05.7]} 29... Qb7 {[%clk 0:01:53.4]} 30. Qa1 {[%clk 0:02:02.8]}
30... Bxe4 {[%clk 0:01:46.2]} 31. Ra7 {[%clk 0:02:03.2]} 31... Qb3 {[%clk
0:01:46.2]} 32. Qa5 {[%clk 0:01:41.3]} 32... Qxc4 {[%clk 0:01:26]} 33. Qc7
{[%clk 0:01:41.3]} 33... Rf8 {[%clk 0:01:12.6]} 34. Bd7 {[%clk 0:01:34.4]} 34...
Qf1 {[%clk 0:01:07.9]} 35. g4 {[%clk 0:01:17.3]} 35... Qh1+ {[%clk 0:01:05.7]}
36. Kg3 {[%clk 0:01:18.6]} 36... Ne2# {[%clk 0:01:05.6]} 0-1

[Event "*** Titled Tuesday Blitz"]
[Site "Chess.com"]
[Date "2018.01.02"]
[Round "4"]
[White "aquiles88"]
[Black "jbj"]
[Result "0-1"]
[WhiteElo "2061"]
[BlackElo "2272"]
[TimeControl "180+2"]
[EndTime "13:50:35 PST"]
[Termination "jbj won by resignation"]

1. e4 {[%clk 0:02:59.1]} 1... d6 {[%clk 0:03:00.5]} 2. d4 {[%clk 0:02:59.6]}
2... Nf6 {[%clk 0:03:01.7]} 3. f3 {[%clk 0:03:00.5]} 3... e5 {[%clk 0:03:01.4]}
4. dxe5 {[%clk 0:03:01.2]} 4... dxe5 {[%clk 0:03:02.2]} 5. Qxd8+ {[%clk
0:03:01.8]} 5... Kxd8 {[%clk 0:03:04.1]} 6. Bc4 {[%clk 0:03:02]} 6... Be6 {[%clk
0:03:04.8]} 7. Bxe6 {[%clk 0:03:02.6]} 7... fxe6 {[%clk 0:03:06.7]} 8. Be3
{[%clk 0:03:04]} 8... Nbd7 {[%clk 0:03:07.3]} 9. Nc3 {[%clk 0:03:03.2]} 9... Bc5
{[%clk 0:03:07]} 10. Bxc5 {[%clk 0:02:57.5]} 10... Nxc5 {[%clk 0:03:08.9]} 11.
O-O-O+ {[%clk 0:02:58.6]} 11... Ke7 {[%clk 0:03:09.8]} 12. Nh3 {[%clk 0:02:56]}
12... a5 {[%clk 0:03:06.5]} 13. Nb5 {[%clk 0:02:49.9]} 13... c6 {[%clk 0:03:05]}
14. Nc3 {[%clk 0:02:31.8]} 14... b5 {[%clk 0:03:03.5]} 15. Nf2 {[%clk
0:02:30.2]} 15... Rhd8 {[%clk 0:02:57.7]} 16. Rxd8 {[%clk 0:02:27.8]} 16... Rxd8
{[%clk 0:02:58]} 17. Rd1 {[%clk 0:02:29.7]} 17... Rg8 {[%clk 0:02:53.6]} 18. Nd3
{[%clk 0:02:29.1]} 18... Nfd7 {[%clk 0:02:51.7]} 19. Nxc5 {[%clk 0:02:24.4]}
19... Nxc5 {[%clk 0:02:53.6]} 20. Ne2 {[%clk 0:02:16.6]} 20... g5 {[%clk
0:02:45.5]} 21. h3 {[%clk 0:02:11.9]} 21... h5 {[%clk 0:02:40.3]} 22. Ng3 {[%clk
0:02:11.9]} 22... g4 {[%clk 0:02:39.1]} 23. Nxh5 {[%clk 0:01:56.7]} 23... gxh3
{[%clk 0:02:39.5]} 24. gxh3 {[%clk 0:01:57.1]} 24... Rh8 {[%clk 0:02:40.5]} 25.
Ng3 {[%clk 0:01:54.4]} 25... Rxh3 {[%clk 0:02:40.7]} 26. Rg1 {[%clk 0:01:55.6]}
26... Rh2 {[%clk 0:02:30.7]} 27. Rf1 {[%clk 0:01:51.5]} 27... Rg2 {[%clk
0:02:25.9]} 28. Nh1 {[%clk 0:01:47.9]} 28... Nd7 {[%clk 0:02:16.2]} 29. Nf2
{[%clk 0:01:47.3]} 29... c5 {[%clk 0:02:10.7]} 30. Ng4 {[%clk 0:01:46.4]} 30...
Rg3 {[%clk 0:02:06]} 31. c3 {[%clk 0:01:38.2]} 31... c4 {[%clk 0:02:05.2]} 32.
Kc2 {[%clk 0:01:32.3]} 32... Rg2+ {[%clk 0:01:59.9]} 33. Rf2 {[%clk 0:01:30.6]}
33... Rg1 {[%clk 0:01:50]} 34. Ne3 {[%clk 0:01:27.6]} 34... Nc5 {[%clk
0:01:47.8]} 35. Ng4 {[%clk 0:01:19.1]} 35... Nd3 {[%clk 0:01:37.6]} 36. Rh2
{[%clk 0:01:18.8]} 36... Ne1+ {[%clk 0:01:34.2]} 0-1

[Event "*** Titled Tuesday Blitz"]
[Site "Chess.com"]
[Date "2018.01.02"]
[Round "4"]
[White "Alexander_Moskalenko"]
[Black "AkshatChandra"]
[Result "1-0"]
[WhiteElo "2754"]
[BlackElo "2667"]
[TimeControl "180+2"]
[EndTime "13:50:38 PST"]
[Termination "Alexander_Moskalenko won on time"]

1. c4 {[%clk 0:03:01.9]} 1... e5 {[%clk 0:03:00.8]} 2. Nc3 {[%clk 0:03:02.5]}
2... Bb4 {[%clk 0:03:02.2]} 3. Nd5 {[%clk 0:03:02.8]} 3... Bc5 {[%clk
0:03:03.2]} 4. b4 {[%clk 0:03:04.3]} 4... Be7 {[%clk 0:02:54.1]} 5. Bb2 {[%clk
0:03:04.4]} 5... c6 {[%clk 0:02:49.5]} 6. Bxe5 {[%clk 0:02:43.7]} 6... cxd5
{[%clk 0:02:46.5]} 7. Bxg7 {[%clk 0:02:44.5]} 7... Bf6 {[%clk 0:02:46.6]} 8.
Bxh8 {[%clk 0:02:45.9]} 8... Bxh8 {[%clk 0:02:48.4]} 9. Rc1 {[%clk 0:02:47.4]}
9... dxc4 {[%clk 0:02:36]} 10. Rxc4 {[%clk 0:02:48.3]} 10... d5 {[%clk
0:02:37.3]} 11. Rc1 {[%clk 0:02:49.1]} 11... Ne7 {[%clk 0:02:31.8]} 12. Nf3
{[%clk 0:02:50.3]} 12... Nbc6 {[%clk 0:02:31.8]} 13. b5 {[%clk 0:02:49.9]} 13...
Ne5 {[%clk 0:02:33.1]} 14. e3 {[%clk 0:02:44]} 14... Bf5 {[%clk 0:02:20.9]} 15.
Nd4 {[%clk 0:02:38.9]} 15... Nd3+ {[%clk 0:02:10.3]} 16. Bxd3 {[%clk 0:02:39.8]}
16... Bxd3 {[%clk 0:02:12.2]} 17. Rc3 {[%clk 0:02:32.1]} 17... Bg6 {[%clk
0:02:09.7]} 18. O-O {[%clk 0:02:30.2]} 18... Nf5 {[%clk 0:01:43]} 19. Qb3 {[%clk
0:01:46.6]} 19... Nxd4 {[%clk 0:00:52.2]} 20. exd4 {[%clk 0:01:48.5]} 20... Kf8
{[%clk 0:00:47.5]} 21. Rc5 {[%clk 0:01:49.1]} 21... Be4 {[%clk 0:00:20.2]} 22.
Qe3 {[%clk 0:01:44.3]} 22... Qf6 {[%clk 0:00:14.8]} 23. Rfc1 {[%clk 0:01:42.2]}
23... Re8 {[%clk 0:00:09.4]} 24. Rc8 {[%clk 0:01:39.9]} 24... Qxd4 {[%clk
0:00:05.2]} 25. Qa3+ {[%clk 0:01:20.6]} 1-0